Workbook

Sheet Bila_D
B2: Konzern-Bilanz (IFRS)
B3: zum 31. März 2017
C4: 2017-03-31 | D4: 2016-09-30 | H4: Y/Y in % | I4: Y/Y absolut
C5: Tsd. € | D5: Tsd. € | H5: in % | I5: Tsd. €
B6: AKTIVA
B7: Langfristige Vermögenswerte
B8: Geschäfts- oder Firmenwert | C8: 166395 | D8: 164578 | H8: =+C8/D8-1 -> 0.01104035776 | I8: =+C8-D8 -> 1817
B9: Sonstige immaterielle Vermögenswerte | C9: 58511 | D9: 53746 | H9: =+C9/D9-1 -> 0.08865776058 | I9: =+C9-D9 -> 4765
B10: Sachanlagen | C10: 64517 | D10: 64509 | H10: 0.0001240137035 | I10: 8
B11: Sonstige Ausleihungen | C11: 141 | D11: 2348 | H11: -0.9399488927 | I11: -2207
B12: Anteile an verbundenen nicht-konsolidierten Unternehmen | C12: 18941 | D12: 0 | H12: =+C12/D12-1 ->  | I12: =+C12-D12 -> 18941
B13: Beteiligungen | C13: 124 | D13: 124 | H13: 0 | I13: 0
B14: Latente Ertragsteuern | C14: 83250 | D14: 89621 | H14: -0.07108824941 | I14: -6371
B15: Langfristige Forderungen aus Lieferungen und Leistungen | C15: 13327 | D15: 11097 | H15: 0.2009552131 | I15: 2230
B16: Sonstige langfristige Vermögenswerte | C16: 4119 | D16: 2874 | H16: 0.4331941545 | I16: 1245
C17: =+SUM(C8:C16) -> 409325 | D17: 388897 | H17: 0.05252804727 | I17: 20428
B18: Kurzfristige Vermögenswerte
B19: Vorräte | C19: 229412 | D19: 208309 | H19: =+C19/D19-1 -> 0.1013062326 | I19: =+C19-D19 -> 21103
B20: Forderungen aus Lieferungen und Leistungen | C20: 180896 | D20: 189244 | H20: -0.04411236288 | I20: -8348
B21: Forderungen aus Lieferungen und Leistungen gegen nahe stehende Unternehmen | C21: 91698 | D21: 60216 | H21: 0.5228178557 | I21: 31482
B22: Forderungen aus Finanzausgleich | C22: 672384 | D22: 354528 | H22: 0.8965610615 | I22: 317856
B23: Steuererstattungsansprüche | C23: 1394 | D23: 5816 | H23: -0.7603163686 | I23: -4422
B24: Sonstige kurzfristige finanzielle Vermögenswerte | C24: 6970 | D24: 9962 | H24: -0.3003412969 | I24: -2992
B25: Sonstige kurzfristige nicht-finanzielle Vermögenswerte | C25: 21518 | D25: 20678 | H25: 0.04062288422 | I25: 840
B26: Zahlungsmittel und Zahlungsmitteläquivalente | C26: 9308 | D26: 8710 | H26: 0.06865671642 | I26: 598
C27: =+SUM(C19:C26) -> 1213580 | D27: 857463 | H27: 0.4153147133 | I27: 356117
B28: Zur Veräußerung gehaltene Vermögenswerte | C28: 0 | D28: 1370 | H28: =+C28/D28-1 -> -1 | I28: =+C28-D28 -> -1370
C29: =+C27+C17+C28 -> 1622905 | D29: 1247730 | H29: 0.3006860459 | I29: 375175
B30: PASSIVA
B31: Eigenkapital
B32: Gezeichnetes Kapital | C32: 89441 | D32: 81310 | H32: =+C32/D32-1 -> 0.1 | I32: =+C32-D32 -> 8131
B33: Kapitalrücklage | C33: 620137 | D33: 313863 | H33: =+C33/D33-1 -> 0.9758206606 | I33: 306274
B34: Gewinnrücklagen | C34: 520073 | D34: 458335 | H34: 0.1347006011 | I34: 61738
B35: Sonstige Bestandteile des Eigenkapitals | C35: -31081 | D35: -55671 | H35: -0.4417021429 | I35: 24590
B36: Eigenkapital ohne Anteile nicht-beherrschender Gesellschafter | C36: =+SUM(C32:C35) -> 1198570 | D36: 797837 | H36: 0.5022742741 | I36: 400733
B37: Ausgleichsposten für Anteile nicht-beherrschender Gesellschafter | C37: 52584 | D37: 53326 | H37: -0.01391441323 | I37: -742
C38: =+C36+C37 -> 1251154 | D38: 851163 | H38: 0.4699346659 | I38: 399991
B39: Langfristige Schulden
B40: Pensionsrückstellungen und ähnliche Verpflichtungen | C40: 55644 | D40: 81134 | H40: =+C40/D40-1 -> -0.3141716173 | I40: =+C40-D40 -> -25490
B41: Andere langfristige Rückstellungen | C41: 5876 | D41: 5380 | H41: 0.09219330855 | I41: 496
B42: Langfristige finanzielle Verbindlichkeiten | C42: 766 | D42: 1610 | H42: -0.5242236025 | I42: -844
B43: Langfristige Leasingverbindlichkeiten | C43: 4848 | D43: 6126 | H43: -0.208619001 | I43: -1278
B44: Sonstige langfristige nicht-finanzielle Verbindlichkeiten | C44: 5936 | D44: 6023 | H44: -0.01444462892 | I44: -87
B45: Latente Ertragsteuern | C45: 10344 | D45: 10397 | H45: -0.005097624315 | I45: -53
C46: =+SUM(C40:C45) -> 83414 | D46: 110670 | H46: -0.2462817385 | I46: -27256
B47: Kurzfristige Schulden
B48: Kurzfristige Rückstellungen | C48: 23812 | D48: 22691 | H48: =+C48/D48-1 -> 0.04940284694 | I48: =+C48-D48 -> 1121
B49: Kurzfristige abgegrenzte Verbindlichkeiten | C49: 70037 | D49: 71168 | H49: -0.01589197392 | I49: -1131
B50: Kurzfristige finanzielle Verbindlichkeiten | C50: 17175 | D50: 22720 | H50: -0.2440580986 | I50: -5545
B51: Kurzfristiger Anteil langfristiger Leasingverbindlichkeiten | C51: 3032 | D51: 2854 | H51: 0.06236860547 | I51: 178
B52: Verbindlichkeiten aus Lieferungen und Leistungen | C52: 55157 | D52: 57105 | H52: -0.0341125996 | I52: -1948
B53: Kurzfristige Verbindlichkeiten aus Ertragsteuern | C53: 11929 | D53: 15863 | H53: -0.247998487 | I53: -3934
B54: Verbindlichkeiten aus Lieferungen und Leistungen gegenüber nahe stehenden Unternehmen | C54: 30958 | D54: 29426 | H54: 0.0520628016 | I54: 1532
B55: Verbindlichkeiten aus Finanzausgleich | C55: 44135 | D55: 28656 | H55: 0.5401661083 | I55: 15479
B56: Sonstige kurzfristige nicht-finanzielle Verbindlichkeiten | C56: 32102 | D56: 35414 | H56: -0.0935223358 | I56: -3312
C57: =+SUM(C48:C56) -> 288337 | D57: 285897 | H57: 0.00853454216 | I57: 2440
C58: =+C38+C46+C57 -> 1622905 | D58: 1247730 | H58: 0.3006860459 | I58: 375175
B59: Der nachfolgende Konzernanhang ist integraler Bestandteil des ungeprüften Konzernabschlusses.

Sheet Bilanzanalyse (hidden)
A1: Abw. Dec./ Sep | C1: Begründung | D1: davon erklärt | E1: Differenz
A2: =#REF! ->  | B2: Geschäfts- oder Firmenwert | C2: Zugang IMEX 7,432 Mio. | D2: =7432 -> 7432 | E2: =A2-D2 -> 
A3: =#REF! ->  | B3: Immaterielle Vermögenswerte | C3: Zugang IMEX 5,551 Mio.
A4: =#REF! ->  | B4: Sachanlagen | C4: Zugang CZM AG 4,0 Mio. vor Afa (hauptsächlich Olymp ca. 3,2 Mio.); Übernahme Mietgeräte bei CZM VG aus Umlaufvermögen (+1,2 Mio.)
A5: =#REF! ->  | B5: Forderungen aus Lieferungen und Leistungen | C5: hierin enthalten 2,9 Mio. Alcon-Lizenzen, Cash-Zahlung erfolgt erst im Januar
A6: =#REF! ->  | B6: Forderungen gegen nahe stehende Unternehmen | C6: v.a. Umsatzanstieg Q1 CZM AG (Umsatz je Quartal: GJ 10/11 --> 113 Mio., Q1 11/12 --> 141 Mio.)
A7: =#REF! ->  | B7: Sonstige kurzfristige finanzielle Vermögenswerte | C7: Anstieg aus CZM Inc. aufgrund der Umgliederung der Kreditkartenforderungen von kurzf. Nicht-finanz. Vw in kurzf. Finanz. Vermögenswerte (+1,3 Mio.). Anstieg CZM AG (+0,3 Mio.) für Zinsabgrenzungen (COBA + HVB) | D7: =1300+300 -> 1600 | E7: =A7-D7 -> 
A8: =#REF! ->  | B8: Sonstige kurzfristige nicht-finanzielle Vermögenswerte | C8: Kompensation des Umgliederungseffektes USA durch CZM F (+0,6 Mio., u.a. UST, ARAP), CZM AG (+0,4 Mio.)
A9: 1207 | B9: Andere langfristige Rückstellungen | C9: IMEX earn out Anteil +2,218 Mio.; Kompensation durch CZM AG (-915 TEUR ATZ, -142 TEUR Verbrauch ERA RST und sonstiges) | D9: =(2.218-0.915-0.142)*1000 -> 1161 | E9: 46
A10: =#REF! ->  | B10: Kurzfristige Rückstellungen | C10: IMEX earn out Anteil +2,149 Mio., Abgrenzung KöSteuer +1,5 Mio. (CZM AG), RST für Gewährleistungen pauschal +0,55 Mio. (CZM AG), Konzernrückstellung Q1 für Projekttehmen +0,85 Mio., Auflösung RST für Bonuszahlung im Dezember + RST-Bildung für geschätzte Logistikosten (CZM Japan), Zuführung RST CZM Inc. für Ferien, Warenrückgabe und Gewährleistung | D10: =(2.149+1.5+0.55+0.85)*1000 -> 5049
A11: =#REF! ->  | B11: Kurzfristige abgegrenzte Verbindlichkeiten | C11: Auszahlung Renumeration für FY 10/11 CZM VG -0,8 Mio. (hier auch Reduzierung RST für ausstehende Rechnung enthalten) und USA -3,1 Mio. (u.a. MBO-Bonus, Super-Bonus); z.T. Kompensation/ Anstieg durch unterjährige Rechnungsabgrenzungen + Risiken CZM AG +1,36 Mio. (davon 0,6 Mio. Konzern-RST bzw. 0,3 Mio. CZM-Verbundene, die im Konzern wieder eliminiert werden); CZM SAS + FCI -04 Mio. Rückgang Personalverbindlichkeiten aufgrund erfolgter Bonuszahlung im Dez 11 | D11: =(-0.8-3.1+1.36-0.3-0.4)*1000 -> -3240
A12: =#REF! ->  | B12: Kurzfristige finanzielle Verbindlichkeiten | C12: Devisentermingeschäfte CZM AG +3,3 Mio. EUR, Reduzierung ausstehende Checks USA aufgrund von Lieferantenzahlungen -0,6 Mio. | D12: =(3.3-0.6)*1000 -> 2700
A13: =#REF! ->  | B13: Verbindlichkeiten aus Lieferungen und Leistungen | C13: CZM AG: Umstellung Lieferantenzahlungen auf tägliche Zahlungen nach Fälligkeit ab Q1 2012 (-3,9 Mio.)
A14: =#REF! ->  | B14: Sonstige kurzfristige nicht-finanzielle Verbindlichkeiten | C14: CZM AG: Lohnsteuerverbindlichkeiten +2,0 Mio. (Prämienzahlung 31.12.) , Lizenzen Alcon +2,2 Mio. Erhaltene Anzahlungen -1,0 Mio., CZM VG: Erhöhung "erhaltene Anzahlungen" und Lohnsteuerverbindlichkeiten zum 31.12. (+0,6 Mio.) CZM Inc: Service-RST (+0,5 Mio.), abgegrenzter Service-Ertrag (+0,4 Mio.) CZM Japan: Bonuszahlung Dez 11 (+0,4 Mio.), Kundenvorauszahlungen OPMI Lumera + Vario (+0,5 Mio.), U-Anteil soziale Sicherheit (+0,2 Mio.) CZM Spanien: abgegrenter Ertrag (+0,3 Mio.) | D14: =(2+2.2-1+0.6+0.5+0.4+0.4+0.5+0.2+0.3)*1000 -> 6100
